Cogmind - Beta 11 *** ADVENTURER MODE // 2022.03.29 @ 20:08:57 Player: A Meat Result: Destroyed by as-45744 with Assembled F-torch Performance ------------- Evolutions (0) 0 Regions Visited (2) 400 Robots Destroyed (19) 95 Value Destroyed (361) 361 Prototype IDs (5) 100 Alien Tech Used (0) 0 Bonus (14) 14 TOTAL SCORE: 970 Bonus ------- Follower Combat Kills 14 Cogmind --------- Core Integrity 0/250 Matter 282/300 Energy 15/100 System Corruption 1% Temperature Cool (20) Movement Core (300) Ox5 Location -10/Mines Parts ------- > --- POWER (1) -------- (None) > --- PROPULSION (2) --- (None) > --- UTILITY (2) ------ Medium Storage Unit Signal Interpreter > --- WEAPON (2) ------- EMP Blaster Mace > --- INVENTORY (10) --- Heat Sink Heat Sink Improved Heat Sink Large Storage Unit Visual Processing Unit Sensor Array EM Shotgun Light Assault Rifle Datajack Peak State ------------ > --- POWER ------------ Light Nuclear Core > --- PROPULSION ------- Wheel Compact Wheel > --- UTILITY ---------- Medium Storage Unit Signal Interpreter > --- WEAPON ----------- Light Assault Rifle Mace > --- INVENTORY -------- Heat Sink Heat Sink Improved Heat Sink Large Storage Unit Visual Processing Unit Sensor Array EM Shotgun Light Assault Rifle EMP Blaster Datajack [Rating: 11] Favorites ----------- Power Ion Engine Engine Ion Engine Power Core Light Nuclear Core Propulsion Wheel Wheel Wheel Utility Signal Interpreter Storage Medium Storage Unit Processor Signal Interpreter Weapon Light Assault Rifle Energy Gun EM Pulse Gun Ballistic Gun Light Assault Rifle Launcher EMP Blaster Impact Weapon Mace Build | -11 -10 -10 ------- Run | Scr Mat Min Slots Evolved . | . . . Power . | . . . Propulsion . | . . . Utility . | . . . Weapon . | . . . Parts Attached 20 | 8 10 2 Power 3 | 1 2 . Engine 2 | 1 1 . Core 1 | . 1 . Reactor . | . . . Propulsion 6 | 3 3 . Treads . | . . . Leg . | . . . Wheel 6 | 3 3 . Hover . | . . . Flight . | . . . Utility 4 | 2 2 . Device . | . . . Storage 3 | 2 1 . Processor 1 | . 1 . Hackware . | . . . Protection . | . . . Artifact . | . . . Weapon 7 | 2 3 2 Energy Gun 1 | 1 . . Energy Cannon . | . . . Ballistic Gun 3 | 1 2 . Ballistic Cannon . | . . . Launcher 1 | . . 1 Special Weapon . | . . . Impact Weapon 2 | . 1 1 Slashing Weapon . | . . . Piercing Weapon . | . . . Special Melee Weapon . | . . . Unidentified Prototypes . | . . . Parts Lost 4 | . . 4 Power 1 | . . 1 Propulsion 2 | . . 2 Utility . | . . . Weapon 1 | . . 1 Highest Loss Streak 4 | . . 4 To Critical Strikes . | . . . Average Slot Usage (%) 98 | . 99 95 Engine 7 | . 9 . Core 6 | . 4 12 Wheel 27 | . 27 25 Storage 15 | . 15 14 Processor 12 | . 12 14 Energy Gun 5 | . 7 . Ballistic Gun 21 | . 20 24 Naked Turns . | . . . Heaviest Build 18 | 18 18 17 Greatest Support 26 | 26 26 26 Greatest Overweight (x) 1 | 1 . 1 Average Overweight (x) . | . . . Largest Inventory Capacity 10 | 8 10 10 Average Capacity 9 | 7 9 10 Most Carried 10 | 3 10 10 Average Carried 7 | 1 7 9 Final Capacity 10 | 8 10 10 Final Carried 10 | 2 10 9 Class Distribution -------------------- 51% | Mutant 48% | Scavenger-Mutant Dominant Class ---------------- Mutant | -10/Materials Scavenger-Mutant | -10/Mines Resources | -11 -10 -10 ----------- Run | Scr Mat Min Matter Collected 454 | 268 166 20 Remotely . | . . . Salvage Created 778 | 159 510 109 Parts 42 | 10 31 1 Haulers Intercepted 2 | . 2 . Recyclers Shooed . | . . . Parts Field Recycled . | . . . Retrieved Matter . | . . . Parts Self-Destructed . | . . . Prevented . | . . . Kills | -11 -10 -10 ------- Run | Scr Mat Min Combat Hostiles Destroyed 19 | . 10 9 Melee 6 | . . 6 Guns 10 | . 9 1 AOE 1 | . . 1 Classes Destroyed 8 | 3 4 1 Worker 1 | 1 . . Tunneler 2 | 2 . . Hauler 2 | . 2 . Recycler 1 | 1 . . Watcher 2 | . 2 . Swarmer 4 | . 3 1 Grunt 7 | . 7 . Assembled 8 | . . 8 Best Kill Streak 8 | 2 4 8 Combat Bots Only 8 | . 4 8 Max Kills in Single Turn 2 | 1 2 1 Gunslinging 1 | . 1 . Exploded 1 | . . 1 Melee 1 | . . 1 Uniques/NPCs Destroyed . | . . . Combat | -11 -10 -10 -------- Run | Scr Mat Min Damage Taken 815 | 16 276 523 Core 253 | 9 85 159 Absorbed by Shields . | . . . Regen/Repaired (Parts) 20 | . 20 . Core Remaining (%) 96 | 96 . . Volleys Fired 65 | 9 49 7 Largest 2 | 2 2 2 Hottest 60 | 60 60 40 Shots Fired 122 | 18 92 12 Gun 120 | 18 92 10 Cannon . | . . . Launcher 2 | . . 2 Special . | . . . Kinetic 81 | 9 62 10 Thermal . | . . . Explosive . | . . . Electromagnetic 41 | 9 30 2 Robot Hit Streak 13 | 8 13 2 Robot Miss Streak 3 | 1 3 3 Penetration Max . | . . . Secondary Targets 1 | . 1 . Max Gunslinging Chain 1 | . 1 . Shots Hit Robots 93 | 13 68 12 Core Hits 43 | 7 28 8 Critical Kills . | . . . Critical Parts Destroyed . | . . . Critical Strikes 1 | . 1 . Corrupt 1 | . 1 . Melee Attacks 12 | . 2 10 Impact 12 | . 2 10 Slashing . | . . . Piercing . | . . . Sneak Attacks . | . . . Combat Hostiles . | . . . Follow-up Attacks . | . . . Damage Inflicted 1234 | 181 688 365 Guns 823 | 157 642 24 Cannons . | . . . Explosions 57 | . . 57 Melee 330 | . 46 284 Ramming 24 | 24 . . Kinetic 449 | 37 388 24 Thermal . | . . . Explosive . | . . . Electromagnetic 431 | 120 254 57 Impact 330 | . 46 284 Slashing . | . . . Piercing . | . . . Highest Corruption 1 | 1 1 1 Average Corruption 1 | 1 1 1 Corruption Purged . | . . . Corruption Blocked . | . . . Effects 6 | . 6 . Message Errors 1 | . 1 . Matter Fused 2 | . 2 . Heat Flow Errors 1 | . 1 . Data Loss (minor) 1 | . 1 . Weapon Failures 1 | . 1 . Overload Shots . | . . . Overflow Damage 70 | . 11 59 Projectiles . | . . . Explosions . | . . . Melee 70 | . 11 59 Knockbacks 1 | . 1 . Impact 1 | . 1 . Kinetic . | . . . Secondary . | . . . Self-Inflicted Damage 13 | 11 . 2 Shots 1 | . . 1 Rammed 6 | 6 . . Targets Rammed 6 | 6 . . Kicked . | . . . Crushed . | . . . Highest Temperature 223 | 40 223 24 Average Temperature 35 | 19 43 6 Received Heat Transfer 389 | . 189 200 Siege Activations . | . . . Robots Corrupted 1 | . 1 . Combat Hostiles 1 | . 1 . Parts Fried 2 | . 2 . Impact Corruptions 4 | . 1 3 Robots Melted . | . . . Combat Hostiles . | . . . Parts Melted . | . . . Heat Transferred . | . . . Parts Sabotaged . | . . . Parts Stolen . | . . . Parts Stripped . | . . . Power Chain Reactions . | . . . Missiles Intercepted . | . . . Alert | -11 -10 -10 ------- Run | Scr Mat Min Peak Influence 172 | 20 172 103 Initial 11 | . 11 . Average 76 | 6 88 66 Maximum Alert Level . | . . . Low Security (%) 100 | 100 100 100 Level 1 . | . . . Level 2 . | . . . Level 3 . | . . . Level 4 . | . . . Level 5 . | . . . High Security . | . . . Max Security . | . . . Squads Dispatched 1 | . 1 . Investigation 1 | . 1 . Extermination . | . . . Reinforcement . | . . . Assault . | . . . Garrison . | . . . Intercept . | . . . Searches Triggered . | . . . Construction Impeded . | . . . Haulers Reinforced . | . . . Active Scanning Responses . | . . . Cargo Convoy Interrupts . | . . . Stealth | -11 -10 -10 --------- Run | Scr Mat Min Distress Signals 2 | . 2 . Communications Jammed . | . . . Distress Signals . | . . . Times Spotted 38 | . 14 24 Peak Tracking Total 17 | . 4 17 Tactical Retreats 3 | . 1 2 Traps | -11 -10 -10 ------- Run | Scr Mat Min Traps Triggered 1 | . 1 . Indirectly . | . . . Trap Hack Attempts . | . . . Triggered . | . . . Disarmed . | . . . Reprogrammed . | . . . Reused . | . . . Traps Extracted . | . . . Installed . | . . . Triggered . | . . . Machines | -11 -10 -10 ---------- Run | Scr Mat Min Machines Disabled . | . . . Max in Single Turn . | . . . Machines Sabotaged . | . . . Garrisons Compromised . | . . . Overloaded Fab Kills . | . . . Hacking | -11 -10 -10 --------- Run | Scr Mat Min Machines Accessed 10 | . 10 . Terminals 7 | . 7 . Fabricators . | . . . Repair Stations 1 | . 1 . Recycling Units 2 | . 2 . Scanalyzers . | . . . Garrison Access . | . . . Total Hacks 24 | . 24 . Successful 16 | . 16 . Failed 8 | . 8 . Catastrophic . | . . . Database Lockouts . | . . . Manual . | . . . Terminals 16 | . 16 . Fabricators . | . . . Repair Stations 3 | . 3 . Recycling Units 5 | . 5 . Scanalyzers . | . . . Garrison Access . | . . . Terminal Hacks 8 | . 8 . Prototype ID Bank 2 | . 2 . Emergency Access Points 1 | . 1 . Alert Level 3 | . 3 . Unreport Threat 1 | . 1 . Maintenance Status 1 | . 1 . Fabricator Hacks . | . . . Repair Station Hacks 3 | . 3 . Scan Component 1 | . 1 . Repair 1 | . 1 . Refit 1 | . 1 . Recycling Unit Hacks 5 | . 5 . Process 1 | . 1 . Report Inventory 2 | . 2 . Retrieve Matter 1 | . 1 . Retrieve Components 1 | . 1 . Scanalyzer . | . . . Garrison Access Hacks . | . . . Unauthorized Hacks . | . . . Terminals . | . . . Fabricators . | . . . Repair Stations . | . . . Recycling Units . | . . . Scanalyzers . | . . . Garrison Access . | . . . Data Cores Recovered . | . . . Used . | . . . Hacking Detections 6 | . 6 . Full Trace Events . | . . . Feedback Events . | . . . Feedback Blocked . | . . . Robot Schematics Acquired . | . . . Robots Built . | . . . Authchips . | . . . Time . | . . . Total Robot Build Rating . | . . . Part Schematics Acquired . | . . . Parts Built . | . . . Authchips . | . . . Time . | . . . Total Part Build Rating . | . . . Parts Repaired 1 | . 1 . Time 26 | . 26 . Parts Recycled . | . . . Recycled Matter 55 | . 55 . Retrieved Matter 55 | . 55 . Retrieved Components 9 | . 9 . Parts Scanalyzed . | . . . Part Schematics Acquired . | . . . Parts Damaged . | . . . Bothacking | -11 -10 -10 ------------ Run | Scr Mat Min Used RIF Installer . | . . . Robots Hacked . | . . . Non-combat . | . . . Combat . | . . . Robot Hacks Applied . | . . . Relay Couplers Released . | . . . Fabnet Peak Effective % . | . . . Robots Rewired . | . . . Allies Hacked . | . . . Hacks Repelled . | . . . Allies | -11 -10 -10 -------- Run | Scr Mat Min Total Allies 2 | . . 2 Largest Group 2 | . . 2 Highest-Rated Group 41 | . . 41 Highest-Rated Ally 31 | . . 31 Total Orders . | . . . Ally Attacks 16 | . . 16 Total Damage 210 | . . 210 Kills 6 | . . 6 Allies Corrupted . | . . . Allies Melted . | . . . Intel | -11 -10 -10 ------- Run | Scr Mat Min Robot Analysis Total . | . . . Derelict Logs Recovered 1 | . . 1 Drone Launches . | . . . Drone Recoveries . | . . . Exploration | -11 -10 -10 ------------- Run | Scr Mat Min Turns Passed 1205 | 124 845 236 Spaces Moved 988 | 85 707 196 Core 8 | 8 . . Treads . | . . . Legs . | . . . Wheels 980 | 77 707 196 Hover . | . . . Flight . | . . . Fastest Speed 50 | 50 90 90 Average Speed 89 | 86 90 90 Slowest Speed 100 | 100 90 95 Overloaded Moves . | . . . Propulsion Burnouts . | . . . Robots Hopped . | . . . Cave-ins Triggered . | . . . Exploration Rate (%) 51 | 4 96 53 Regions Visited 2 Branch Regions 1 Pre-discovered Areas . | . . . Known Exits Taken 1 | . 1 . Unknown Exits Taken 1 | 1 . . Scrap Searched . | . . . Spaces Dug . | . . . Terrain Destroyed . | . . . Melee . | . . . Projectile . | . . . AOE . | . . . Terrain Rammed . | . . . Walls Destroyed . | . . . Machines Disabled . | . . . Actions | -11 -10 -10 --------- Run | Scr Mat Min Total 1180 | 118 835 227 Wait 40 | . 28 12 Move 986 | 84 706 196 Hop . | . . . Pick Up 34 | 10 24 . Fast Attach . | . . . Attach 10 | 7 2 1 Detach . | . . . Swap 10 | 1 8 1 Drop 17 | 1 16 . Fire 65 | 9 49 7 Melee 12 | . 2 10 Ram 6 | 6 . . Kick . | . . . Crush . | . . . Escape Stasis . | . . . Rewire . | . . . Trap . | . . . Miscellaneous . | . . . Route ------- -11/Scrapyard -10/Materials (discovered 4 exits: *Mat x3 / *Min) -10/Mines (discovered 1 exit: *Mat) History --------- Turn | Location | Event 20 | -11/Scrapyard | Discovered new exit (range 16) 125 | -11/Scrapyard | Entered Materials 289 | -10/Materials | Repaired Com. Wheel 311 | -10/Materials | Build established: Mutant 318 | -10/Materials | Discovered new exit (range 15) 458 | -10/Materials | Discovered new exit (range 3) 459 | -10/Materials | Identified exit to Materials 709 | -10/Materials | Discovered exit to Materials (range 15) 891 | -10/Materials | Build established: Scavenger-Mutant 947 | -10/Materials | Discovered new exit (range 10) 955 | -10/Materials | Identified exit to Mines 970 | -10/Materials | Entered Mines 972 | -10/Mines | Discovered exit to Materials (range 12) 1049 | -10/Mines | Found a hidden stash of uninstalled traps 1154 | -10/Mines | Assembled infested the area 1170 | -10/Mines | Core integrity fell below 50% 1200 | -10/Mines | Core integrity fell below 20% 1206 | -10/Mines | Destroyed by as-45744 with Assembled F-torch Last Messages --------------- as-61340 destroyed. Destroyed Asb. Hover Unit. as-48383 system corrupted by crushing effect. as-48383 system terminally corrupted. as-14574 destroyed. Acquired 14 matter. Com. Wheel destroyed. Destroyed Asb. Hover Unit. as-18991 system corrupted by crushing effect. as-18991 destroyed. Lgt. Nuclear Core destroyed. Lgt. Assault Rifle destroyed. Destroyed Asb. Hover Unit. as-38946 system corrupted by crushing effect. as-38946 destroyed. Wheel destroyed. as-91565 destroyed. as-21773 destroyed. as-78224 destroyed. as-37010 IFF system glitched. Map ----- +----------------------------------------------------+ | ??????????????????????????????????????????? | | ?????????????????????????????????????????## | | ????????????????????????????????????????## | | ???????????????????????????? ""????????## | | ???????????????????????????? ???????? | | ???????????????????????????? ??????? | | ???????????????????????????? ??????? | | ???????????????????????????? ???????# | | ????????????????????????????# ????????# | | ????????????????????????????# ????????# | | ????????????????????????????# #????????# | | ????????????????????????????# #?????????# | | ????????????????????????????# #?????????## | | ????????????????????????????# #??????????# | | ???????? ???????????????????# #??????????? | | ?????? ??????????????????# #??????????? | | ?????? ??????????????????# #?????????## | | ????? % ?????????????????# ########### | | ?????# ????????????????# %* | | ??????# ???????????????# ############ | | ???????# #??????????????# #??????????? | | ????????# #?????????????# #??????????? | | ???????## ##???????????# #??????????? | | ??????## % a#####??????# #??????????? | | ?????## a ##?????# #??????????? | | ???# % @% #?????# #???######## | | ??? ###### %% #?????# #???# | | ??????? #????## % ##?????# #???# ###### | | ???????? #?????##%##?????## ##??# #????? | | ????????# #??????#a#?????## ##?# #???## | | ????????# #??????#%#????## #?# ##### | | ????????# #??????# #????# ### # | | ????????# ######## #????# %% | | ????????# ###### ######### | | ????????# ########## ##???????# | | ????????# #????????# ##???????## | | ????????# #####????# ## #????????# < | | ????????# #????# ### #???????# | | ????????###### #????# #?# #??????# | | ???????????### #????# #?## ?????# """ | | ??????????## ##???# #??# #??# """ | | ??????????# #???# #??## ##??# """ | | ??????????# ##### #????#####???# | | ??????????# #????????????## | | ?????????# # #?????????????### | | ????????# ############???????????????## | | ????????# ????????????????????????????# | | ???????# ????????????????????????????# | | ??????# ?????????????????????????????## | | ??????# ???????????????????????????????# | +----------------------------------------------------+ Best States ------------- Heat Dissipation 25 Energy Generation 14 Energy Capacity 250 Matter Stores 300 Matter Capacity 300 Sight Range 16 Terrain Scan Density 10 Resistance: KI 20 Resistance: TH 20 Resistance: EX 20 Resistance: EM 20 Resistance: I 20 Resistance: S 20 Resistance: P 20 Evasion (%) 44 Offensive Hacking 10 Item Schematics ----------------- None Robot Schematics ------------------ None Fabricated ------------ Nothing Alien Tech Used ----------------- None Achievements -------------- None Challenges ------------ None Game ------ Seed AccelerationGreatWheel Manual? 0 Play Time 00:21:38 Cumulative 23.1 hours Start 2022.03.29 @ 19:48:21 End 2022.03.29 @ 20:08:57 Sessions 1 Manual Loads 0 Difficulty Adventurer Special Mode None Game No. 5 Rogue 0 Adventurer 5 Explorer 0 Win Type - Total 1 Types 0/0/0/1/0/0/0/0/0 Lore% 12 Gallery% 30 Achievement% 29 Wizard Run 0 Options --------- ASCII 0 Keyboard 0 Movement Mouse Keybinds 0 Fullscreen 1 Font 18/X11Bold Map View 76x50 Tactical HUD 0 Map Filters NONE Filters NONE Steam 1 RUN: 6e3dc861-5cb4-4f93-90cb-d7b5ab5f5e48